[Event "Titled Tuesday Blitz December 06 Early 2022"]
[White "Forgacs, Attila Jr."]
[Black "Zaksaite, Salomeja"]
[WhiteFideId "773654"]
[BlackFideId "12801496"]
[WhiteElo "2168"]
[BlackElo "2079"]
[Result "0-1"]
[Round "09"]
[TimeControl "180+1"]
[Date "2022.12.07"]
[WhiteClock "0:01:02"]
[BlackClock "0:00:20"]

1. e4 {[%clk 0:03:00]}  c5 {[%clk 0:02:57]} 2. d3 {[%clk 0:02:58]}  Nc6 {[%clk 0:02:56]} 3. g3 {[%clk 0:02:58]}  g6 {[%clk 0:02:56]} 4. Bg2 {[%clk 0:02:59]}  Bg7 {[%clk 0:02:56]} 5. f4 {[%clk 0:02:59]}  e6 {[%clk 0:02:53]} 6. Nf3 {[%clk 0:02:59]}  Nge7 {[%clk 0:02:53]} 7. O-O {[%clk 0:02:59]}  O-O {[%clk 0:02:53]} 8. c3 {[%clk 0:02:58]}  d5 {[%clk 0:02:53]} 9. e5 {[%clk 0:02:58]}  Rb8 {[%clk 0:02:51]} 10. a4 {[%clk 0:02:56]}  a6 {[%clk 0:02:50]} 11. Be3 {[%clk 0:02:54]}  d4 {[%clk 0:02:49]} 12. cxd4 {[%clk 0:02:54]}  cxd4 {[%clk 0:02:48]} 13. Bf2 {[%clk 0:02:55]}  b5 {[%clk 0:02:45]} 14. axb5 {[%clk 0:02:55]}  axb5 {[%clk 0:02:45]} 15. Nbd2 {[%clk 0:02:55]}  Qb6 {[%clk 0:02:45]} 16. Ne4 {[%clk 0:02:54]}  Nd5 {[%clk 0:02:45]} 17. Qd2 {[%clk 0:02:49]}  Ba6 {[%clk 0:02:15]} 18. Rfc1 {[%clk 0:02:48]}  Rfc8 {[%clk 0:02:14]} 19. Nd6 {[%clk 0:02:47]}  Rc7 {[%clk 0:02:04]} 20. Ng5 {[%clk 0:02:42]}  Bf8 {[%clk 0:02:02]} 21. Bxd5 {[%clk 0:02:36]}  exd5 {[%clk 0:02:01]} 22. Ndxf7 {[%clk 0:02:18]}  Rxf7 {[%clk 0:01:59]} 23. Nxf7 {[%clk 0:02:19]}  Kxf7 {[%clk 0:01:59]} 24. f5 {[%clk 0:02:09]}  Nxe5 {[%clk 0:01:39]} 25. Qf4 {[%clk 0:02:07]}  Nxd3 {[%clk 0:01:38]} 26. Rc7+ {[%clk 0:02:06]}  Kg8 {[%clk 0:01:29]} 27. Qf3 {[%clk 0:01:37]}  Qxc7 {[%clk 0:01:21]} 28. Qxd3 {[%clk 0:01:35]}  Bc8 {[%clk 0:01:11]} 29. fxg6 {[%clk 0:01:34]}  hxg6 {[%clk 0:01:10]} 30. Bxd4 {[%clk 0:01:34]}  Bf5 {[%clk 0:01:07]} 31. Qf3 {[%clk 0:01:33]}  Qf7 {[%clk 0:00:55]} 32. Qf4 {[%clk 0:01:18]}  Rc8 {[%clk 0:00:47]} 33. Ra7 {[%clk 0:01:16]}  Qe6 {[%clk 0:00:41]} 34. Bc3 {[%clk 0:01:05]}  Bc5+ {[%clk 0:00:25]} 35. Kf1 {[%clk 0:01:03]}  Bxa7 {[%clk 0:00:21]} 36. Qh6 {[%clk 0:01:03]}  d4 {[%clk 0:00:21]} 37. Bxd4 {[%clk 0:01:02]}  Bxd4 {[%clk 0:00:20]} 0-1


[Site "https://www.chess.com"]

[Event "Titled Tuesday Blitz December 06 Early 2022"]
[White "Garv Gaur"]
[Black "Yaran, Siar"]
[WhiteFideId "45030839"]
[BlackFideId "6323006"]
[WhiteElo "2056"]
[BlackElo "2191"]
[Result "1-0"]
[Round "09"]
[TimeControl "180+1"]
[Date "2022.12.07"]
[WhiteClock "0:00:19"]
[BlackClock "0:00:01"]

1. d4 {[%clk 0:02:48]}  d5 {[%clk 0:00:17]} 2. Nf3 {[%clk 0:02:46]}  e6 {[%clk 0:00:15]} 3. c4 {[%clk 0:02:46]}  Nf6 {[%clk 0:00:16]} 4. g3 {[%clk 0:02:46]}  Be7 {[%clk 0:00:17]} 5. Bg2 {[%clk 0:02:46]}  O-O {[%clk 0:00:17]} 6. O-O {[%clk 0:02:47]}  dxc4 {[%clk 0:00:18]} 7. Qc2 {[%clk 0:02:47]}  a6 {[%clk 0:00:19]} 8. a4 {[%clk 0:02:48]}  Bd7 {[%clk 0:00:19]} 9. Ne5 {[%clk 0:02:48]}  Bc6 {[%clk 0:00:20]} 10. Nxc6 {[%clk 0:02:48]}  Nxc6 {[%clk 0:00:21]} 11. e3 {[%clk 0:02:49]}  Na5 {[%clk 0:00:21]} 12. Nd2 {[%clk 0:02:49]}  c5 {[%clk 0:00:22]} 13. dxc5 {[%clk 0:02:50]}  Rc8 {[%clk 0:00:22]} 14. b4 {[%clk 0:02:49]}  cxb3 {[%clk 0:00:23]} 15. Nxb3 {[%clk 0:02:49]}  Nxb3 {[%clk 0:00:24]} 16. Qxb3 {[%clk 0:02:50]}  Nd7 {[%clk 0:00:24]} 17. Ba3 {[%clk 0:02:50]}  Nxc5 {[%clk 0:00:25]} 18. Bxc5 {[%clk 0:02:51]}  Rxc5 {[%clk 0:00:26]} 19. Rfd1 {[%clk 0:02:46]}  Qc7 {[%clk 0:00:26]} 20. Qxb7 {[%clk 0:02:46]}  Qxb7 {[%clk 0:00:25]} 21. Bxb7 {[%clk 0:02:47]}  a5 {[%clk 0:00:26]} 22. Rac1 {[%clk 0:02:41]}  g6 {[%clk 0:00:24]} 23. Ba6 {[%clk 0:02:33]}  Kg7 {[%clk 0:00:23]} 24. Rb1 {[%clk 0:02:23]}  Rd8 {[%clk 0:00:20]} 25. Kf1 {[%clk 0:02:10]}  Rxd1+ {[%clk 0:00:19]} 26. Rxd1 {[%clk 0:02:11]}  Rc2 {[%clk 0:00:20]} 27. Rd7 {[%clk 0:02:07]}  Bb4 {[%clk 0:00:19]} 28. Ra7 {[%clk 0:02:06]}  Rc1+ {[%clk 0:00:19]} 29. Kg2 {[%clk 0:02:06]}  Rc2 {[%clk 0:00:20]} 30. Kf1 {[%clk 0:02:02]}  Bc5 {[%clk 0:00:18]} 31. Rb7 {[%clk 0:01:51]}  Rc1+ {[%clk 0:00:18]} 32. Ke2 {[%clk 0:01:49]}  Bb4 {[%clk 0:00:15]} 33. Bb5 {[%clk 0:01:47]}  Kf8 {[%clk 0:00:12]} 34. Rb8+ {[%clk 0:01:46]}  Ke7 {[%clk 0:00:12]} 35. Rb7+ {[%clk 0:01:46]}  Kf8 {[%clk 0:00:12]} 36. h3 {[%clk 0:01:39]}  h5 {[%clk 0:00:12]} 37. g4 {[%clk 0:01:36]}  h4 {[%clk 0:00:12]} 38. Rb8+ {[%clk 0:01:32]}  Kg7 {[%clk 0:00:11]} 39. Rb7 {[%clk 0:01:33]}  Kf8 {[%clk 0:00:11]} 40. Rd7 {[%clk 0:01:29]}  Rc2+ {[%clk 0:00:08]} 41. Kf1 {[%clk 0:01:28]}  Rc1+ {[%clk 0:00:08]} 42. Kg2 {[%clk 0:01:28]}  Rc2 {[%clk 0:00:09]} 43. Rd1 {[%clk 0:01:27]}  Bc5 {[%clk 0:00:09]} 44. Kf3 {[%clk 0:01:27]}  f5 {[%clk 0:00:07]} 45. Rd8+ {[%clk 0:01:25]}  Ke7 {[%clk 0:00:07]} 46. Rg8 {[%clk 0:01:22]}  Kf6 {[%clk 0:00:07]} 47. Be8 {[%clk 0:01:20]}  g5 {[%clk 0:00:06]} 48. Rg6+ {[%clk 0:01:18]}  Ke7 {[%clk 0:00:06]} 49. Bb5 {[%clk 0:01:19]}  fxg4+ {[%clk 0:00:03]} 50. hxg4 {[%clk 0:01:20]}  h3 {[%clk 0:00:03]} 51. Rxg5 {[%clk 0:01:20]}  h2 {[%clk 0:00:04]} 52. Rh5 {[%clk 0:01:20]}  Bd6 {[%clk 0:00:05]} 53. Kg2 {[%clk 0:01:16]}  Rc1 {[%clk 0:00:05]} 54. f4 {[%clk 0:01:09]}  Rc2+ {[%clk 0:00:02]} 55. Kg3 {[%clk 0:01:10]}  Rc3 {[%clk 0:00:01]} 56. Kf3 {[%clk 0:01:10]}  Rc2 {[%clk 0:00:01]} 57. Be2 {[%clk 0:01:10]}  Bc5 {[%clk 0:00:01]} 58. Rxh2 {[%clk 0:01:05]}  Rc3 {[%clk 0:00:02]} 59. Rh7+ {[%clk 0:01:04]}  Kd6 {[%clk 0:00:02]} 60. Bb5 {[%clk 0:01:04]}  Rxe3+ {[%clk 0:00:03]} 61. Kg2 {[%clk 0:01:04]}  Kd5 {[%clk 0:00:03]} 62. f5 {[%clk 0:01:02]}  exf5 {[%clk 0:00:03]} 63. gxf5 {[%clk 0:01:03]}  Ke5 {[%clk 0:00:04]} 64. Bd7 {[%clk 0:01:00]}  Kf4 {[%clk 0:00:04]} 65. f6 {[%clk 0:00:58]}  Re2+ {[%clk 0:00:05]} 66. Kf1 {[%clk 0:00:57]}  Rf2+ {[%clk 0:00:05]} 67. Ke1 {[%clk 0:00:56]}  Kg5 {[%clk 0:00:06]} 68. f7 {[%clk 0:00:45]}  Kg6 {[%clk 0:00:06]} 69. Rh3 {[%clk 0:00:35]}  Kxf7 {[%clk 0:00:06]} 70. Bb5 {[%clk 0:00:34]}  Rf4 {[%clk 0:00:05]} 71. Rh5 {[%clk 0:00:34]}  Bb4+ {[%clk 0:00:05]} 72. Ke2 {[%clk 0:00:34]}  Kg6 {[%clk 0:00:06]} 73. Rd5 {[%clk 0:00:34]}  Re4+ {[%clk 0:00:07]} 74. Kf3 {[%clk 0:00:29]}  Rh4 {[%clk 0:00:08]} 75. Ke2 {[%clk 0:00:30]}  Kf6 {[%clk 0:00:08]} 76. Kf3 {[%clk 0:00:30]}  Ke6 {[%clk 0:00:08]} 77. Rd1 {[%clk 0:00:29]}  Ke5 {[%clk 0:00:08]} 78. Rc1 {[%clk 0:00:27]}  Rh3+ {[%clk 0:00:08]} 79. Kg4 {[%clk 0:00:27]}  Ra3 {[%clk 0:00:08]} 80. Rc8 {[%clk 0:00:27]}  Kd4 {[%clk 0:00:08]} 81. Kf4 {[%clk 0:00:26]}  Bd2+ {[%clk 0:00:07]} 82. Kf5 {[%clk 0:00:26]}  Rf3+ {[%clk 0:00:08]} 83. Ke6 {[%clk 0:00:26]}  Bb4 {[%clk 0:00:08]} 84. Rc4+ {[%clk 0:00:26]}  Ke3 {[%clk 0:00:07]} 85. Ke5 {[%clk 0:00:27]}  Rf7 {[%clk 0:00:07]} 86. Re4+ {[%clk 0:00:26]}  Kd2 {[%clk 0:00:07]} 87. Kd4 {[%clk 0:00:24]}  Rf6 {[%clk 0:00:06]} 88. Re2+ {[%clk 0:00:24]}  Kd1 {[%clk 0:00:06]} 89. Rh2 {[%clk 0:00:24]}  Rd6+ {[%clk 0:00:05]} 90. Kc4 {[%clk 0:00:24]}  Rg6 {[%clk 0:00:04]} 91. Bd7 {[%clk 0:00:22]}  Rf6 {[%clk 0:00:03]} 92. Bg4+ {[%clk 0:00:20]}  Ke1 {[%clk 0:00:03]} 93. Kd3 {[%clk 0:00:20]}  Rf8 {[%clk 0:00:03]} 94. Bh5 {[%clk 0:00:19]}  Rh8 {[%clk 0:00:01]} 95. Ke3 {[%clk 0:00:19]} 1-0


[Site "https://www.chess.com"]

[Event "Titled Tuesday Blitz December 06 Early 2022"]
[White "Ghosh, Chanchal Kumer"]
[Black "D`Arruda, Ricardo D."]
[WhiteFideId "10201858"]
[BlackFideId "100692"]
[WhiteElo "2058"]
[BlackElo "2446"]
[Result "0-1"]
[Round "09"]
[TimeControl "180+1"]
[Date "2022.12.07"]
[WhiteClock "0:00:18"]
[BlackClock "0:01:38"]

1. e4 {[%clk 0:03:00]}  c5 {[%clk 0:02:58]} 2. Nf3 {[%clk 0:03:01]}  Nc6 {[%clk 0:02:56]} 3. d4 {[%clk 0:03:02]}  cxd4 {[%clk 0:02:57]} 4. Nxd4 {[%clk 0:03:03]}  e5 {[%clk 0:02:57]} 5. Nb5 {[%clk 0:03:02]}  a6 {[%clk 0:02:58]} 6. Nd6+ {[%clk 0:03:02]}  Bxd6 {[%clk 0:02:58]} 7. Qxd6 {[%clk 0:03:03]}  Qe7 {[%clk 0:02:59]} 8. Qxe7+ {[%clk 0:02:59]}  Ngxe7 {[%clk 0:03:00]} 9. c3 {[%clk 0:02:59]}  d5 {[%clk 0:02:59]} 10. exd5 {[%clk 0:02:57]}  Nxd5 {[%clk 0:03:00]} 11. Bc4 {[%clk 0:02:56]}  Be6 {[%clk 0:03:00]} 12. Bxd5 {[%clk 0:02:50]}  Bxd5 {[%clk 0:02:59]} 13. O-O {[%clk 0:02:50]}  O-O-O {[%clk 0:02:58]} 14. Be3 {[%clk 0:02:34]}  Kc7 {[%clk 0:02:58]} 15. Nd2 {[%clk 0:02:32]}  f5 {[%clk 0:02:55]} 16. f4 {[%clk 0:02:30]}  e4 {[%clk 0:02:53]} 17. Rfd1 {[%clk 0:02:25]}  Be6 {[%clk 0:02:51]} 18. Nf1 {[%clk 0:02:20]}  Rxd1 {[%clk 0:02:49]} 19. Rxd1 {[%clk 0:02:05]}  Bxa2 {[%clk 0:02:50]} 20. g4 {[%clk 0:01:51]}  g6 {[%clk 0:02:44]} 21. gxf5 {[%clk 0:01:49]}  gxf5 {[%clk 0:02:45]} 22. Ng3 {[%clk 0:01:50]}  Be6 {[%clk 0:02:43]} 23. Kf2 {[%clk 0:01:47]}  h5 {[%clk 0:02:40]} 24. Ne2 {[%clk 0:01:21]}  Rd8 {[%clk 0:02:16]} 25. Rg1 {[%clk 0:01:10]}  Na5 {[%clk 0:01:59]} 26. Nd4 {[%clk 0:01:08]}  Bc8 {[%clk 0:01:57]} 27. Rg7+ {[%clk 0:01:02]}  Kb8 {[%clk 0:01:56]} 28. Rh7 {[%clk 0:00:55]}  Nc4 {[%clk 0:01:54]} 29. b3 {[%clk 0:00:52]}  Nb2 {[%clk 0:01:53]} 30. Rxh5 {[%clk 0:00:51]}  Nd1+ {[%clk 0:01:53]} 31. Ke2 {[%clk 0:00:51]}  Nxc3+ {[%clk 0:01:53]} 32. Kd2 {[%clk 0:00:48]}  Nb5 {[%clk 0:01:53]} 33. h4 {[%clk 0:00:37]}  Nxd4 {[%clk 0:01:52]} 34. Bxd4 {[%clk 0:00:37]}  Rxd4+ {[%clk 0:01:53]} 35. Ke2 {[%clk 0:00:36]}  Rd3 {[%clk 0:01:46]} 36. Rh8 {[%clk 0:00:27]}  Rf3 {[%clk 0:01:45]} 37. h5 {[%clk 0:00:25]}  Rxf4 {[%clk 0:01:45]} 38. h6 {[%clk 0:00:25]}  Rh4 {[%clk 0:01:45]} 39. Ke3 {[%clk 0:00:24]}  Kc7 {[%clk 0:01:41]} 40. h7 {[%clk 0:00:23]}  Bd7 {[%clk 0:01:40]} 41. Kd4 {[%clk 0:00:21]}  Bc6 {[%clk 0:01:37]} 42. Ke5 {[%clk 0:00:20]}  e3 {[%clk 0:01:38]} 43. Kf6 {[%clk 0:00:18]}  e2 {[%clk 0:01:38]} 0-1


[Site "https://www.chess.com"]

[Event "Titled Tuesday Blitz December 06 Early 2022"]
[White "Gong, Qianyun"]
[Black "Valle Maytin, Luis Enrique"]
[WhiteFideId "8602425"]
[BlackFideId "3503666"]
[WhiteElo "2199"]
[BlackElo "2225"]
[Result "1-0"]
[Round "09"]
[TimeControl "180+1"]
[Date "2022.12.07"]
[WhiteClock "0:00:15"]
[BlackClock "0:00:02"]

1. e4 {[%clk 0:02:57]}  c6 {[%clk 0:02:58]} 2. d4 {[%clk 0:02:56]}  d5 {[%clk 0:02:59]} 3. e5 {[%clk 0:02:56]}  c5 {[%clk 0:02:59]} 4. c3 {[%clk 0:02:55]}  Nc6 {[%clk 0:02:58]} 5. Nf3 {[%clk 0:02:53]}  Bg4 {[%clk 0:02:55]} 6. Be2 {[%clk 0:02:54]}  e6 {[%clk 0:02:55]} 7. O-O {[%clk 0:02:53]}  Nge7 {[%clk 0:02:51]} 8. Be3 {[%clk 0:02:52]}  Nf5 {[%clk 0:02:46]} 9. Nbd2 {[%clk 0:02:51]}  Be7 {[%clk 0:02:43]} 10. h3 {[%clk 0:02:49]}  Bxf3 {[%clk 0:02:42]} 11. Nxf3 {[%clk 0:02:50]}  h5 {[%clk 0:02:43]} 12. Qd2 {[%clk 0:02:43]}  Qb6 {[%clk 0:02:38]} 13. dxc5 {[%clk 0:02:33]}  Bxc5 {[%clk 0:02:36]} 14. Bxc5 {[%clk 0:02:33]}  Qxc5 {[%clk 0:02:37]} 15. Bd3 {[%clk 0:02:31]}  Nfe7 {[%clk 0:02:30]} 16. b4 {[%clk 0:02:25]}  Qb6 {[%clk 0:02:29]} 17. a4 {[%clk 0:02:25]}  Qc7 {[%clk 0:02:28]} 18. Rfe1 {[%clk 0:02:24]}  g6 {[%clk 0:02:16]} 19. Qf4 {[%clk 0:02:19]}  Nf5 {[%clk 0:02:15]} 20. Rac1 {[%clk 0:01:57]}  Rd8 {[%clk 0:02:06]} 21. g4 {[%clk 0:01:42]}  hxg4 {[%clk 0:02:00]} 22. hxg4 {[%clk 0:01:43]}  Nh4 {[%clk 0:01:58]} 23. Nxh4 {[%clk 0:01:21]}  Rxh4 {[%clk 0:01:57]} 24. Kg2 {[%clk 0:01:19]}  Qe7 {[%clk 0:01:15]} 25. b5 {[%clk 0:01:06]}  Nb8 {[%clk 0:01:06]} 26. Rh1 {[%clk 0:01:05]}  g5 {[%clk 0:01:04]} 27. Qg3 {[%clk 0:01:03]}  Rxh1 {[%clk 0:00:59]} 28. Rxh1 {[%clk 0:01:04]}  Kd7 {[%clk 0:00:59]} 29. c4 {[%clk 0:01:02]}  dxc4 {[%clk 0:00:46]} 30. Bxc4 {[%clk 0:01:03]}  Rc8 {[%clk 0:00:44]} 31. Rd1+ {[%clk 0:01:02]}  Ke8 {[%clk 0:00:45]} 32. Be2 {[%clk 0:00:58]}  Nd7 {[%clk 0:00:44]} 33. Bf3 {[%clk 0:00:57]}  Nf8 {[%clk 0:00:37]} 34. Be4 {[%clk 0:00:53]}  Rc4 {[%clk 0:00:30]} 35. Qd3 {[%clk 0:00:53]}  Rc8 {[%clk 0:00:26]} 36. Qf3 {[%clk 0:00:47]}  Nd7 {[%clk 0:00:25]} 37. Rxd7 {[%clk 0:00:41]}  Kxd7 {[%clk 0:00:18]} 38. Bxb7 {[%clk 0:00:40]}  Rc5 {[%clk 0:00:18]} 39. Bc6+ {[%clk 0:00:39]}  Kc7 {[%clk 0:00:18]} 40. Qe3 {[%clk 0:00:34]}  Kb6 {[%clk 0:00:11]} 41. Bf3 {[%clk 0:00:31]}  Qc7 {[%clk 0:00:11]} 42. Qe4 {[%clk 0:00:27]}  Ka5 {[%clk 0:00:10]} 43. Qe3 {[%clk 0:00:22]}  Qxe5 {[%clk 0:00:10]} 44. Qd2+ {[%clk 0:00:21]}  Qc3 {[%clk 0:00:09]} 45. Qd7 {[%clk 0:00:21]}  Qe5 {[%clk 0:00:06]} 46. Qxa7+ {[%clk 0:00:20]}  Kb4 {[%clk 0:00:07]} 47. Qe7 {[%clk 0:00:16]}  Kxa4 {[%clk 0:00:06]} 48. b6 {[%clk 0:00:16]}  Rb5 {[%clk 0:00:05]} 49. Bc6 {[%clk 0:00:15]}  Ka5 {[%clk 0:00:03]} 50. Qa7+ {[%clk 0:00:14]}  Kb4 {[%clk 0:00:02]} 51. b7 {[%clk 0:00:15]} 1-0


[Site "https://www.chess.com"]

[Event "Titled Tuesday Blitz December 06 Early 2022"]
[White "Goroshkov, Maksym"]
[Black "Petrova, Irina"]
[WhiteFideId "14142716"]
[BlackFideId "14124122"]
[WhiteElo "2258"]
[BlackElo "2023"]
[Result "1-0"]
[Round "09"]
[TimeControl "180+1"]
[Date "2022.12.07"]
[WhiteClock "0:01:05"]
[BlackClock "0:00:20"]

1. e4 {[%clk 0:03:00]}  d6 {[%clk 0:03:00]} 2. d4 {[%clk 0:02:59]}  Nf6 {[%clk 0:03:00]} 3. Bd3 {[%clk 0:02:59]}  e5 {[%clk 0:03:00]} 4. c3 {[%clk 0:02:59]}  Nc6 {[%clk 0:03:00]} 5. Ne2 {[%clk 0:02:58]}  Be7 {[%clk 0:03:00]} 6. O-O {[%clk 0:02:57]}  O-O {[%clk 0:03:00]} 7. Bg5 {[%clk 0:02:57]}  d5 {[%clk 0:02:53]} 8. Bxf6 {[%clk 0:02:57]}  Bxf6 {[%clk 0:02:54]} 9. exd5 {[%clk 0:02:56]}  Qxd5 {[%clk 0:02:54]} 10. c4 {[%clk 0:02:57]}  Qd8 {[%clk 0:02:54]} 11. d5 {[%clk 0:02:55]}  Nd4 {[%clk 0:02:54]} 12. Nd2 {[%clk 0:02:54]}  g6 {[%clk 0:02:44]} 13. Nxd4 {[%clk 0:02:37]}  exd4 {[%clk 0:02:44]} 14. Re1 {[%clk 0:02:38]}  Bg7 {[%clk 0:02:43]} 15. Qf3 {[%clk 0:02:36]}  Qh4 {[%clk 0:02:33]} 16. h3 {[%clk 0:02:34]}  Bd7 {[%clk 0:02:25]} 17. Re4 {[%clk 0:02:31]}  Qg5 {[%clk 0:02:21]} 18. Nb3 {[%clk 0:02:27]}  Bf5 {[%clk 0:02:15]} 19. Re2 {[%clk 0:02:21]}  Bxd3 {[%clk 0:01:55]} 20. Qxd3 {[%clk 0:02:22]}  Rfe8 {[%clk 0:01:54]} 21. Rae1 {[%clk 0:02:21]}  Rxe2 {[%clk 0:01:37]} 22. Rxe2 {[%clk 0:02:22]}  h5 {[%clk 0:01:32]} 23. Re1 {[%clk 0:01:52]}  c6 {[%clk 0:01:09]} 24. d6 {[%clk 0:01:44]}  c5 {[%clk 0:01:07]} 25. d7 {[%clk 0:01:36]}  Rd8 {[%clk 0:01:06]} 26. Re8+ {[%clk 0:01:36]}  Kh7 {[%clk 0:01:06]} 27. Nxc5 {[%clk 0:01:35]}  Bf6 {[%clk 0:00:47]} 28. Ne4 {[%clk 0:01:32]}  Qc1+ {[%clk 0:00:46]} 29. Kh2 {[%clk 0:01:33]}  Qf4+ {[%clk 0:00:34]} 30. g3 {[%clk 0:01:32]}  Qf5 {[%clk 0:00:27]} 31. Nxf6+ {[%clk 0:01:23]}  Qxf6 {[%clk 0:00:28]} 32. Rxd8 {[%clk 0:01:23]}  Qxd8 {[%clk 0:00:29]} 33. Qxd4 {[%clk 0:01:22]}  b6 {[%clk 0:00:29]} 34. Qd6 {[%clk 0:01:16]}  Kg7 {[%clk 0:00:25]} 35. Qe5+ {[%clk 0:01:16]}  Kf8 {[%clk 0:00:23]} 36. Qh8+ {[%clk 0:01:15]}  Ke7 {[%clk 0:00:23]} 37. Qxd8+ {[%clk 0:01:15]}  Kxd8 {[%clk 0:00:24]} 38. Kg2 {[%clk 0:01:15]}  Kxd7 {[%clk 0:00:25]} 39. Kf3 {[%clk 0:01:16]}  Kc6 {[%clk 0:00:25]} 40. Ke4 {[%clk 0:01:14]}  Kc5 {[%clk 0:00:26]} 41. Kd3 {[%clk 0:01:13]}  f6 {[%clk 0:00:26]} 42. Kc3 {[%clk 0:01:13]}  a5 {[%clk 0:00:26]} 43. b3 {[%clk 0:01:13]}  b5 {[%clk 0:00:26]} 44. cxb5 {[%clk 0:01:13]}  Kxb5 {[%clk 0:00:27]} 45. a3 {[%clk 0:01:12]}  g5 {[%clk 0:00:24]} 46. b4 {[%clk 0:01:10]}  axb4+ {[%clk 0:00:25]} 47. axb4 {[%clk 0:01:11]}  f5 {[%clk 0:00:26]} 48. Kd4 {[%clk 0:01:07]}  g4 {[%clk 0:00:20]} 49. h4 {[%clk 0:01:05]} 1-0


[Site "https://www.chess.com"]

[Event "Titled Tuesday Blitz December 06 Early 2022"]
[White "Guzman Moneo, Alberto"]
[Black "Herman, Daniel"]
[WhiteFideId "2209616"]
[BlackFideId "30935008"]
[WhiteElo "2157"]
[BlackElo "1897"]
[Result "1-0"]
[Round "09"]
[TimeControl "180+1"]
[Date "2022.12.07"]
[WhiteClock "0:00:15"]
[BlackClock "0:00:07"]

1. c4 {[%clk 0:03:00]}  e5 {[%clk 0:02:59]} 2. Nc3 {[%clk 0:02:58]}  Bb4 {[%clk 0:02:58]} 3. Nd5 {[%clk 0:02:56]}  Be7 {[%clk 0:02:57]} 4. d4 {[%clk 0:02:55]}  d6 {[%clk 0:02:55]} 5. Nf3 {[%clk 0:02:48]}  Nc6 {[%clk 0:02:50]} 6. e3 {[%clk 0:02:43]}  Nf6 {[%clk 0:02:47]} 7. Nxe7 {[%clk 0:02:41]}  Qxe7 {[%clk 0:02:47]} 8. Be2 {[%clk 0:02:38]}  O-O {[%clk 0:02:40]} 9. O-O {[%clk 0:02:38]}  Bg4 {[%clk 0:02:37]} 10. Re1 {[%clk 0:02:30]}  e4 {[%clk 0:02:34]} 11. Nd2 {[%clk 0:02:27]}  Bxe2 {[%clk 0:02:33]} 12. Qxe2 {[%clk 0:02:27]}  d5 {[%clk 0:02:08]} 13. a3 {[%clk 0:02:23]}  Nd8 {[%clk 0:01:59]} 14. cxd5 {[%clk 0:02:22]}  Nxd5 {[%clk 0:01:58]} 15. Nc4 {[%clk 0:02:12]}  Ne6 {[%clk 0:01:42]} 16. Bd2 {[%clk 0:02:05]}  c5 {[%clk 0:01:32]} 17. dxc5 {[%clk 0:01:53]}  Nxc5 {[%clk 0:01:32]} 18. Red1 {[%clk 0:01:46]}  Nd3 {[%clk 0:01:26]} 19. Be1 {[%clk 0:01:45]}  Rac8 {[%clk 0:01:24]} 20. Na5 {[%clk 0:01:34]}  b6 {[%clk 0:01:16]} 21. Nb3 {[%clk 0:01:34]}  Rc6 {[%clk 0:01:12]} 22. Nd4 {[%clk 0:01:12]}  Rg6 {[%clk 0:01:12]} 23. Rxd3 {[%clk 0:01:00]}  exd3 {[%clk 0:01:10]} 24. Qxd3 {[%clk 0:01:00]}  Rc8 {[%clk 0:00:58]} 25. Nf5 {[%clk 0:00:55]}  Qe5 {[%clk 0:00:38]} 26. Qxd5 {[%clk 0:00:54]}  Qxd5 {[%clk 0:00:39]} 27. Ne7+ {[%clk 0:00:54]}  Kf8 {[%clk 0:00:39]} 28. Nxd5 {[%clk 0:00:54]}  Rc2 {[%clk 0:00:33]} 29. Bc3 {[%clk 0:00:46]}  f6 {[%clk 0:00:23]} 30. Nb4 {[%clk 0:00:40]}  Rxc3 {[%clk 0:00:19]} 31. bxc3 {[%clk 0:00:40]}  Rg5 {[%clk 0:00:20]} 32. Rc1 {[%clk 0:00:31]}  Ra5 {[%clk 0:00:19]} 33. Nc2 {[%clk 0:00:31]}  Rc5 {[%clk 0:00:19]} 34. Nd4 {[%clk 0:00:31]}  Ra5 {[%clk 0:00:19]} 35. Ra1 {[%clk 0:00:28]}  Rc5 {[%clk 0:00:19]} 36. Ne2 {[%clk 0:00:28]}  Rd5 {[%clk 0:00:19]} 37. Kf1 {[%clk 0:00:25]}  Rd2 {[%clk 0:00:19]} 38. Ke1 {[%clk 0:00:25]}  Rb2 {[%clk 0:00:19]} 39. a4 {[%clk 0:00:24]}  Ke7 {[%clk 0:00:18]} 40. a5 {[%clk 0:00:22]}  b5 {[%clk 0:00:16]} 41. a6 {[%clk 0:00:22]}  Kd6 {[%clk 0:00:15]} 42. Nd4 {[%clk 0:00:21]}  Kc5 {[%clk 0:00:13]} 43. Ne6+ {[%clk 0:00:20]}  Kc4 {[%clk 0:00:13]} 44. Nxg7 {[%clk 0:00:19]}  Kxc3 {[%clk 0:00:13]} 45. Nh5 {[%clk 0:00:18]}  b4 {[%clk 0:00:11]} 46. Nxf6 {[%clk 0:00:18]}  b3 {[%clk 0:00:10]} 47. Nd5+ {[%clk 0:00:18]}  Kc4 {[%clk 0:00:05]} 48. Nb6+ {[%clk 0:00:16]}  Kc3 {[%clk 0:00:05]} 49. Na4+ {[%clk 0:00:14]}  Kc2 {[%clk 0:00:04]} 50. Nxb2 {[%clk 0:00:15]}  Kxb2 {[%clk 0:00:05]} 51. Rd1 {[%clk 0:00:14]}  Kc3 {[%clk 0:00:06]} 52. e4 {[%clk 0:00:15]}  b2 {[%clk 0:00:07]} 53. e5 {[%clk 0:00:15]} 1-0


[Site "https://www.chess.com"]